lending/lending_fUSD_20240110
["ID","MTS","AMOUNT","RATE_DAILY","PERIOD"]
[311041158,1704887432124,-200.0,0.00024852,2]
[311041159,1704887432133,-167.61,0.00024861,2]
[311041160,1704887432142,-300.0,0.00024874,2]
[311041161,1704887432152,-150.0,0.00024947,2]
[311041162,1704887432161,-250.0,0.00025,3]
[311041163,1704887432171,-499.99,0.00025,2]
[311041164,1704887432180,-4432.16,0.00025134,2]
[311041165,1704887432189,-500.0,0.00025134,2]
[311041166,1704887432198,-250.0,0.00025252,2]
[311041167,1704887432208,-169.40616018,0.00025357,2]
[311041168,1704887432217,-3359.0,0.000254,2]
[311041169,1704887432226,-2000.0,0.00025429,2]
[311041170,1704887432235,-1407.28,0.00025499,2]
[311041171,1704887432244,-500.0,0.00025524,2]
[311041172,1704887432253,-872.60606553,0.00025621,2]
[311041173,1704887432262,-205.0,0.0002566,5]
[311041174,1704887432272,-156.49,0.00025683,2]
[311041175,1704887432281,-200.0,0.00025861,2]
[311041176,1704887432290,-678.07,0.0002587,2]
[311041177,1704887432300,-200.0,0.00025871,2]
[311041178,1704887432310,-3000.26578585,0.00025923,2]
[311041179,1704887432319,-2705.0,0.00025926,2]
[311041180,1704887432328,-150.0,0.00025971,10]
[311041181,1704887432337,-586.45,0.00025994,2]
[311041182,1704887432346,-222.41,0.00026041,2]
[311041183,1704887432355,-150.0,0.00026079,2]
[311041184,1704887432365,-527.58,0.0002609,2]
[311041185,1704887432374,-150.0,0.00026091,2]
[311041186,1704887432383,-169.40616018,0.00026293,2]
[311041187,1704887432392,-719.13,0.00026513,2]
[311041188,1704887432402,-445.90233337,0.0002652,2]
[311041189,1704887432411,-1607.24,0.00026575,2]
[311041190,1704887432420,-266.13,0.00026623,2]
[311041191,1704887432429,-266.13,0.00026696,2]
[311041192,1704887432438,-266.13,0.00026769,2]
[311041193,1704887432448,-800.0,0.00026791,2]
[311041194,1704887432457,-266.13,0.00026842,2]
[311041195,1704887432466,-266.13,0.00026915,2]
[311041196,1704887432475,-219.95090379,0.00026969,2]
[311041197,1704887432484,-198.87132187,0.00026969,2]
[311041198,1704887432493,-155.0,0.00026969,2]
[311041199,1704887432502,-932.61376497,0.00026969,2]
[311041200,1704887432511,-589.45823217,0.00026969,2]
[311041219,1704887438166,-214.86,0.00024195,2]
[311041221,1704887438176,-148.75901928,0.00025404,2]
[311041223,1704887438187,-66.10098072,0.00025404,2]
[311041225,1704887438196,-214.86,0.00026614,2]
[311041227,1704887438206,-586.81175476,0.00026969,2]
[311041229,1704887438215,-517.95865647,0.00026969,2]
[311041231,1704887438224,-300.0,0.00027,3]
[311041233,1704887438234,-150.0,0.00027016,2]
[311041235,1704887438243,-527.58,0.00027069,2]
[311041236,1704887438252,-169.40616018,0.00027228,2]
[311041237,1704887438262,-250.18215158,0.00027341,10]
[311041238,1704887438272,-250.0,0.00027397,2]
[311041239,1704887438281,-272.02761837,0.00027397,10]
[311041240,1704887438314,-758.84238163,0.00027397,10]
[311041241,1704887438323,-235.49,0.00027418,2]
[311041242,1704887438331,-237.02,0.00027531,2]
[311041243,1704887438341,-226.21,0.00027559,2]
[311041244,1704887438350,-226.21,0.00027634,2]
[311041245,1704887438359,-237.02,0.00027676,2]
[311041246,1704887438369,-312.13,0.00027693,2]
[311041247,1704887438378,-226.21,0.0002771,2]
[311041248,1704887438388,-159.62,0.00027722,2]
[311041249,1704887438397,-226.21,0.00027786,2]
[311041250,1704887438406,-237.02,0.00027821,2]
[311041251,1704887438415,-214.86,0.00027824,2]
[311041252,1704887438424,-226.21,0.00027861,2]
[311041253,1704887438433,-226.21,0.00027937,2]
[311041254,1704887438443,-200.0,0.00027959,2]
[311041255,1704887438452,-237.02,0.00027966,2]
[311041256,1704887438461,-226.21,0.00028012,2]
[311041257,1704887438471,-527.58,0.00028047,2]
[311041258,1704887438480,-237.02,0.00028111,2]
[311041265,1704887438670,-205.0,0.00028113,9]
[311041267,1704887438691,-678.07,0.00028134,2]
[311041269,1704887438701,-169.40616018,0.00028164,2]
[311041271,1704887438710,-289.55936073,0.00028175,2]
[311041273,1704887438720,-237.02,0.00028256,2]
[311041276,1704887438729,-150.0,0.00028315,2]
[311041278,1704887438743,-159.62,0.00028374,2]
[311041280,1704887438753,-237.02,0.00028401,2]
[311041282,1704887438762,-237.02,0.00028545,2]
[311041284,1704887438772,-150.0,0.0002856,2]
[311041286,1704887438782,-150.0,0.00028598,2]
[311041288,1704887438791,-164.64,0.00028656,2]
[311041290,1704887438801,-237.02,0.0002869,2]
[311041292,1704887438810,-418.31655925,0.00028702,2]
[311041294,1704887438821,-1645.18680225,0.00028702,2]
[311041296,1704887438831,-829.22,0.00028757,2]
[311041298,1704887438840,-275.944,0.00028757,2]
[311041300,1704887438849,-150.0,0.00028757,2]
[311041302,1704887438859,-237.02,0.00028835,2]
[311041305,1704887438869,-176.01,0.000289,2]
[311041307,1704887438878,-1052.1783,0.00028973,2]
[311041308,1704887438888,-237.02,0.0002898,2]
[311041311,1704887438898,-350.0,0.00029,3]
[311041313,1704887438907,-159.62,0.00029026,2]
[311041315,1704887438916,-527.58,0.00029026,2]
[311041317,1704887438926,-214.86,0.00029033,2]
[311041319,1704887438935,-8275.44897916,0.00029073,2]
[311041389,1704887439705,-1347.88958326,0.00029073,2]
[311041392,1704887439717,-498.7452,0.00029073,2]
[311041396,1704887439747,-2854.27725498,0.00029073,2]
[311041400,1704887439775,-481.32,0.00029073,2]
[311041407,1704887439832,-226.21,0.00028088,2]
[311041409,1704887439842,-26407.95093692,0.00029073,2]
[311041411,1704887439854,-1023.8,0.00029073,2]
[311041492,1704887440600,-226.21,0.00028164,2]
[311041494,1704887440610,-93.8537897,0.00028239,2]
[311041496,1704887440623,-132.3562103,0.00028239,2]
[311041498,1704887440634,-226.21,0.00028315,2]
[311041500,1704887440645,-226.21,0.0002839,2]
[311041503,1704887440655,-226.21,0.00028466,2]
[311041505,1704887440665,-226.21,0.00028541,2]
[311041507,1704887440676,-226.21,0.00028617,2]
[311041562,1704887441195,-3302.1065897,0.00029073,2]
[311041571,1704887441280,-9071.96555598,0.00029073,2]
[311041573,1704887441291,-169.40616018,0.000291,2]
[311041575,1704887441302,-237.02,0.00029125,2]
[311041577,1704887441313,-7812.4392,0.0002919,2]
[311041579,1704887441323,-300.0,0.000292,2]
[311041581,1704887441333,-237.02,0.0002927,2]
[311041583,1704887441344,-172.21093985,0.00029315,4]
[311041585,1704887441354,-7580.22986212,0.00029374,2]
[311041611,1704887441595,-226.21,0.00028693,2]
[311041613,1704887441605,-226.21,0.00028768,2]
[311041615,1704887441616,-226.21,0.00028844,2]
[311041617,1704887441626,-8029.98173788,0.00029374,2]
[311041620,1704887441642,-91315.79812063,0.000294,2]
[311041622,1704887441655,-78070.18187937,0.000294,2]
[311041625,1704887441666,-237.02,0.00029415,2]
[311041627,1704887441680,-176.01,0.00029448,2]
[311041629,1704887441690,-8750.0,0.000295,2]
[311041631,1704887441701,-300.0,0.000295,10]
[311041633,1704887441711,-237.02,0.0002956,2]
[311041635,1704887441723,-600.0,0.000296,10]
[311041637,1704887441734,-1346.62495625,0.00029606,2]
[311041639,1704887441745,-159.62,0.00029677,2]
[311041641,1704887441761,-900.0,0.000297,10]
[311041643,1704887441771,-2734.57,0.000297,2]
[311041645,1704887441782,-800.0,0.00029704,5]
[311041647,1704887441792,-237.02,0.00029705,2]
[311041650,1704887441803,-155.0,0.0002971,2]
[311041652,1704887441814,-1500.0,0.00029736,2]
[311041654,1704887441825,-378.0,0.00029795,5]
[311041656,1704887441836,-322.21073895,0.00029796,2]
[311041658,1704887441847,-2610.0455749,0.00029798,2]
[311041660,1704887441858,-155.80759902,0.00029798,2]
[311041662,1704887441868,-960.48455905,0.00029798,2]
[311041664,1704887441879,-325.54174968,0.00029798,2]
[311041666,1704887441889,-155.0,0.00029798,2]
[311041668,1704887441900,-197.94081466,0.00029798,2]
[311041670,1704887441910,-155.0,0.00029798,2]
[311041673,1704887441924,-278.75448039,0.00029798,2]
[311041675,1704887441935,-10447.76394476,0.00029798,2]
[311041779,1704887442750,-226.21,0.00028919,2]
[311041782,1704887442760,-77.47822635,0.00029798,2]
[311041787,1704887442773,-2406.0,0.00029798,2]
[311041790,1704887442784,-1094.93749655,0.00029798,2]
[311041796,1704887442808,-20051.46793234,0.00029798,2]
[311041799,1704887442818,-1000.0,0.000298,2]
[311041803,1704887442827,-1200.0,0.000298,10]
[311041806,1704887442837,-164.76117706,0.000298,2]
[311041809,1704887442847,-282.58593972,0.00029806,2]
[311041812,1704887442856,-293.76,0.0002984,2]
[311041815,1704887442866,-293.76,0.0002984,2]
[311041818,1704887442876,-293.76,0.0002984,2]
[311041821,1704887442885,-293.76,0.0002984,2]
[311041824,1704887442895,-321.29,0.00029846,2]
[311041827,1704887442904,-417.61,0.00029846,2]
[311041830,1704887442914,-150.0,0.00029846,2]
[311041833,1704887442923,-500.0,0.00029849,2]
[311041836,1704887442933,-500.0,0.00029849,2]
[311041840,1704887442942,-500.0,0.00029849,2]
[311041843,1704887442952,-500.0,0.00029849,2]
[311041845,1704887442962,-500.0,0.00029849,2]
[311041848,1704887442971,-264.0891,0.00029849,2]
[311041851,1704887442981,-1000.0,0.00029849,2]
[311041853,1704887442991,-1000.0,0.00029849,2]
[311041855,1704887443000,-1000.0,0.00029849,2]
[311041857,1704887443009,-1000.0,0.00029849,2]
[311041859,1704887443019,-1000.0,0.00029849,2]
[311041861,1704887443028,-1000.0,0.00029849,2]
[311041863,1704887443038,-1000.0,0.00029849,2]
[311041865,1704887443048,-1000.0,0.00029849,2]
[311041867,1704887443057,-1000.0,0.00029849,2]
[311041869,1704887443068,-1000.0,0.00029849,2]
[311041872,1704887443077,-1000.0,0.00029849,2]
[311041874,1704887443087,-1000.0,0.00029849,2]
[311041876,1704887443096,-1000.0,0.00029849,2]
[311041878,1704887443106,-1000.0,0.00029849,2]
[311041880,1704887443115,-1000.0,0.00029849,2]
[311041882,1704887443124,-1000.0,0.00029849,2]
[311041884,1704887443134,-1000.0,0.00029849,2]
[311041886,1704887443143,-1000.0,0.00029849,2]
[311041888,1704887443153,-1000.0,0.00029849,2]
[311041890,1704887443163,-1000.0,0.00029849,2]
[311041892,1704887443172,-1000.0,0.00029849,2]
[311041894,1704887443183,-1000.0,0.00029849,2]
[311041896,1704887443193,-1000.0,0.00029849,2]
[311041898,1704887443202,-1000.0,0.00029849,2]
[311041900,1704887443211,-1000.0,0.00029849,2]
[311041902,1704887443220,-1000.0,0.00029849,2]
[311041904,1704887443229,-452.424,0.00029849,2]
[311041906,1704887443238,-500.0,0.00029849,2]
[311041908,1704887443248,-500.0,0.00029849,2]
[311041910,1704887443258,-153.12629208,0.00029849,2]
[311041913,1704887443270,-346.87370792,0.00029849,2]
[311041915,1704887443280,-500.0,0.00029849,2]
[311041917,1704887443290,-500.0,0.00029849,2]
[311041919,1704887443299,-500.0,0.00029849,2]
[311041921,1704887443310,-500.0,0.00029849,2]
[311041923,1704887443320,-88.05792169,0.00029849,2]
[311041925,1704887443332,-411.94207831,0.00029849,2]
[311041927,1704887443342,-500.0,0.00029849,2]
[311041929,1704887443352,-500.0,0.00029849,2]
[311041932,1704887443362,-498.99481835,0.00029849,2]
[311041934,1704887443374,-1.00518165,0.00029849,2]
[311041936,1704887443384,-500.0,0.00029849,2]
[311041938,1704887443394,-149.10481895,0.00029849,2]
[311041941,1704887443410,-350.89518105,0.00029849,2]
[311041943,1704887443420,-500.0,0.00029849,2]
[311041945,1704887443429,-500.0,0.00029849,2]
[311041947,1704887443439,-500.0,0.00029849,2]
[311041949,1704887443448,-500.0,0.00029849,2]
[311041951,1704887443458,-500.0,0.00029849,2]
[311041953,1704887443467,-500.0,0.00029849,2]
[311041955,1704887443477,-500.0,0.00029849,2]
[311041957,1704887443487,-500.0,0.00029849,2]
[311041959,1704887443496,-500.0,0.00029849,2]
[311041962,1704887443505,-186.15462271,0.00029849,2]
[311041964,1704887443517,-313.84537729,0.00029849,2]
[311041966,1704887443527,-500.0,0.00029849,2]
[311041968,1704887443536,-500.0,0.00029849,2]
[311041970,1704887443546,-500.0,0.00029849,2]
[311041972,1704887443556,-500.0,0.00029849,2]
[311041974,1704887443567,-500.0,0.00029849,2]
[311041976,1704887443577,-500.0,0.00029849,2]
[311041978,1704887443586,-500.0,0.00029849,2]
[311041981,1704887443596,-500.0,0.00029849,2]
[311041983,1704887443605,-500.0,0.00029849,2]
[311041985,1704887443615,-558.5301,0.00029849,2]
[311041987,1704887443624,-237.02,0.0002985,2]
[311041989,1704887443634,-187.76604445,0.00029885,2]
[311041991,1704887443643,-300.02,0.00029887,2]
[311041993,1704887443652,-3290.92677058,0.00029887,2]
[311041995,1704887443662,-12.06776243,0.00029898,2]
[311041997,1704887443675,-208.19890203,0.00029898,2]
[311041999,1704887443685,-385.02931366,0.00029898,2]
[311042002,1704887443694,-497.02227286,0.00029898,2]
[311042007,1704887443737,-561.48506984,0.00029898,2]
[311042009,1704887443746,-269.15974279,0.00029898,2]
[311042011,1704887443756,-245.10987285,0.00029898,2]
[311042013,1704887443766,-6891.38190051,0.00029898,2]
[311042015,1704887443778,-3595.44092798,0.00029898,2]
[311042018,1704887443787,-3224.07620175,0.00029898,2]
[311042020,1704887443796,-474.64500844,0.00029898,2]
[311042022,1704887443806,-429.64833181,0.00029898,2]
[311042024,1704887443815,-369.42965507,0.00029898,2]
[311042026,1704887443825,-2523.89576785,0.00029898,2]
[311042028,1704887443835,-761.78064637,0.00029898,2]
[311042030,1704887443845,-156.91306846,0.00029898,2]
[311042032,1704887443854,-222.94994172,0.00029898,2]
[311042034,1704887443864,-548.39666702,0.00029898,2]
[311042036,1704887443875,-155.0,0.00029898,2]
[311042038,1704887443885,-161.44432636,0.00029898,2]
[311042040,1704887443894,-185.36956383,0.00029898,2]
[311042042,1704887443906,-162.417086,0.00029898,7]
[311042044,1704887443916,-162.417086,0.00029898,7]
[311042047,1704887443925,-687.766618,0.00029898,7]
[311042049,1704887443935,-540.90072547,0.00029899,2]
[311042051,1704887443944,-245.98964121,0.00029899,2]
[311042053,1704887443954,-952.66950955,0.00029899,2]
[311042055,1704887443963,-150.0,0.00029899,2]
[311042057,1704887443972,-150.0,0.00029899,2]
[311042059,1704887443981,-183973.7314763,0.000299,2]
[311042077,1704887444135,-6100.1836709,0.000299,2]
[311042081,1704887444163,-445.58906951,0.000299,2]
[311042083,1704887444175,-1228.53770147,0.000299,2]
[311042087,1704887444199,-2832.07390237,0.000299,2]
[311042089,1704887444211,-1120.29391523,0.000299,2]
[311042091,1704887444223,-31530.63610033,0.000299,2]
[311042179,1704887446155,-714.8698506,0.00029072,2]
[311042180,1704887446209,-2324.9224883,0.00029072,2]
[311042181,1704887446219,-136.17989899,0.00029072,2]
[311042182,1704887446230,-58.25164498,0.00029072,2]
[311042183,1704887446239,-1938.16160483,0.00029898,2]
[311042184,1704887446248,-687.766618,0.00029898,7]
[311042185,1704887446260,-885.82013414,0.000299,2]
[311042186,1704887446272,-7646.84,0.000299,2]
[311042187,1704887446283,-773.56478229,0.000299,2]
[311042188,1704887446333,-7792.58086538,0.000299,2]
[311042189,1704887446477,-2290.46103287,0.000299,2]
[311042190,1704887446489,-8691.75106017,0.000299,2]
[311042194,1704887470212,3595774.14633329,0.00023,2]
[311042195,1704887479078,3132.63894394,0.00021,2]
[311042196,1704887481125,9695.08510935,9e-05,2]
[311042197,1704887486427,1524.55107124,0.00018,2]
[311042198,1704887487260,5506.14111278,0.000217,2]
[311042199,1704887492424,623.7029263,0.0001,2]
[311042200,1704887493530,617.63731155,0.00022,2]
[311042201,1704887494586,361.31768725,0.000225,2]
[311042227,1704887495335,1641.81279317,0.0002,2]
[311042241,1704887495845,3182.01197305,0.00022078,2]
[311042295,1704887514602,411.93133355,6.94e-05,2]
[311042302,1704887521750,600.0,0.000155,2]
[311042303,1704887527092,502.46625212,0.0002,2]
[311042304,1704887557250,6950.32,0.00031,30]
[311042305,1704887559626,150.0,0.00021997,2]
[311042306,1704887570886,205.4335435,0.00022907,6]
[311042307,1704887575527,205.43354346,0.00024895,9]
[311042308,1704887584229,24024.30401251,0.000225,2]
[311042310,1704887628420,150.0,0.00021998,2]
[311042311,1704887639635,3100.0,0.0002,2]
[311042312,1704887644120,205.0,0.00022207,2]
[311042313,1704887644195,2115.26000456,0.00021998,2]
[311042314,1704887652051,190.77822876,0.0002,2]
[311042316,1704887660241,2115.26000456,0.00021998,2]
[311042317,1704887668575,984.47133732,0.00022,2]
[311042318,1704887686297,2115.26000456,0.00021998,2]
[311042319,1704887696532,150.0,0.00021878,2]
[311042320,1704887697829,150.0,0.00022426,2]
[311042321,1704887704716,2115.26000456,0.00022,2]
[311042329,1704887722204,558.01225348,0.00022,2]
[311042334,1704887734821,176.01,0.00022,2]
[311042337,1704887737732,176.01,0.00022,2]
[311042341,1704887743818,3041.12,0.00022165,2]
[311042342,1704887748955,150.0,0.00022165,2]
[311042346,1704887765559,500.0,0.00022,2]
[311042349,1704887779357,150.0,0.0002177,2]
[311042350,1704887809886,299.99,0.00022882,7]
[311042352,1704887818218,176.8846555,0.0002177,2]
[311042353,1704887818654,1876.78783194,0.0002177,2]
[311042354,1704887820895,3195.18174134,0.0002177,2]
[311042355,1704887823875,3185.21463735,0.00022076,2]
[311042356,1704887824719,203.47773637,0.00022,2]
[311042357,1704887825369,883.93852646,0.0002177,2]
[311042358,1704887828567,4109.36308953,0.0002177,2]
[311042359,1704887830618,155.0,0.0002177,2]
[311042360,1704887845375,455.9659701,0.0002177,2]
[311042361,1704887854099,845.481875,0.0002177,2]
[311042362,1704887855113,200.0,0.00022396,2]
[311042363,1704887863448,275.37470068,0.0002896,120]
[311042364,1704887870082,844.79621877,0.0002177,2]
[311042365,1704887897623,206.61,0.00021892,2]
[311042366,1704887933778,23900.0,0.00021901,2]
[311042367,1704887978245,601.47,0.00021901,2]
[311042368,1704887991112,250.0,0.00022486,2]
[311042369,1704888007100,196.81,0.00021904,2]
[311042370,1704888007327,196.81,0.00022019,2]
[311042371,1704888007577,196.81,0.00022135,2]
[311042372,1704888007792,196.81,0.0002225,2]
[311042373,1704888008028,196.81,0.00022365,2]
[311042374,1704888008281,196.81,0.0002248,2]
[311042376,1704888015500,160.38,0.0002212,2]
[311042377,1704888019948,668.29,0.00019965,2]
[311042378,1704888020166,668.29,0.00022229,2]
[311042379,1704888056614,319.11,0.00021879,2]
[311042380,1704888112402,2000.0,0.00022486,2]
[311042381,1704888127917,157.47035089,0.00022448,2]
[311042382,1704888132917,157.47035074,0.00022478,2]
[311042383,1704888132992,213.68,0.00021879,2]
[311042384,1704888154535,1089.06,0.0002186,2]
[311042385,1704888165191,7955.96,0.00021918,2]
[311042386,1704888184642,150.22530601,0.00021896,2]
[311042387,1704888185670,150.0,0.00021818,2]
[311042388,1704888226938,166.06,0.00021876,2]
[311042389,1704888261603,150.0,0.00021729,2]
[311042390,1704888268242,-152.76760984,0.00022501,2]
[311042391,1704888268930,-150.0,0.00022501,2]
[311042392,1704888270542,-150.0,0.00022501,2]
[311042393,1704888287293,300.0,0.00021876,2]
[311042394,1704888291906,153.65,0.00021913,2]
[311042395,1704888292112,153.65,0.00022001,2]
[311042396,1704888292348,153.65,0.00022088,2]
[311042397,1704888292743,153.65,0.00022176,2]
[311042398,1704888292963,153.65,0.00022264,2]
[311042399,1704888293194,153.65,0.00022352,2]
[311042400,1704888293407,153.65,0.0002244,2]
[311042401,1704888293441,194.43154397,0.000225,2]
[311042402,1704888309040,-74.61449745,0.00022501,2]
[311042403,1704888309064,-75.38550255,0.00022501,2]
[311042404,1704888310192,-150.0,0.00022501,2]
[311042405,1704888310670,-150.0,0.00022501,2]
[311042406,1704888311178,-150.0,0.00022501,2]
[311042407,1704888313676,-150.0,0.00022501,2]
[311042408,1704888314829,-150.0,0.00022501,2]
[311042409,1704888315446,-150.0,0.00022501,2]
[311042410,1704888315974,-24.61449745,0.00022501,2]
[311042411,1704888320078,220.06189485,0.000225,2]
[311042412,1704888329789,1000.0,0.00022081,2]
[311042413,1704888334330,450.0,0.00021876,2]
[311042414,1704888347499,1000.0,0.00022081,2]
[311042415,1704888354287,176.01,0.00022,2]
[311042416,1704888367514,555.08912,0.00022078,2]
[311042417,1704888374923,50491.89883886,0.00021876,2]
[311042418,1704888393359,22465.07096672,0.00021735,2]
[311042419,1704888393386,1434.92903328,0.00021735,2]
[311042420,1704888400260,150.0,0.00021876,2]
[311042421,1704888400279,150.0,0.00021876,2]
[311042422,1704888400298,150.0,0.00021876,2]
[311042423,1704888400317,148.61488162,0.00021876,2]
[311042424,1704888401962,150.0,0.00021725,2]
[311042425,1704888401983,150.0,0.00021725,2]
[311042426,1704888402006,150.0,0.00021725,2]
[311042427,1704888402027,111.37,0.00021725,2]
[311042428,1704888419105,150.0,0.00021735,2]
[311042429,1704888419126,150.0,0.00021735,2]
[311042430,1704888419146,3.99055603,0.00021735,2]
[311042431,1704888439110,300.0,0.00021735,2]
[311042433,1704888454564,150.0,0.00021876,2]
[311042434,1704888454584,100.0,0.00021876,2]
[311042435,1704888460145,159.62,0.00022094,2]
[311042436,1704888464347,150.0,0.0002239,2]
[311042437,1704888464368,150.0,0.0002239,2]
[311042438,1704888473129,150.0,0.00021735,2]
[311042439,1704888473149,92.69300702,0.00021735,2]
[311042440,1704888475492,57.30699298,0.00019845,2]
[311042441,1704888475514,150.0,0.00019845,2]
[311042442,1704888475536,150.0,0.00019845,2]
[311042443,1704888475557,244.15300702,0.00019845,2]
[311042444,1704888475690,4.95944804,0.00022109,2]
[311042445,1704888475711,596.50055196,0.00022109,2]
[311042446,1704888482219,1202.76760984,0.00021856,2]
[311042447,1704888507604,220.06189485,0.00022499,2]
[311042448,1704888508907,10000.0,0.00031,30]
[311042449,1704888527137,527.38210729,0.00022499,2]
[311042450,1704888532988,2000.0,0.00021819,2]
[311042451,1704888543966,159.55,0.00021818,2]
[311042452,1704888545138,364.33867082,0.00022499,2]
[311042453,1704888613102,10000.0,0.00031,30]
[311042486,1704888631891,-242.89244721,0.00022506,2]
[311042488,1704888631901,-194.43154397,0.00022507,2]
[311042490,1704888631910,-115.39220435,0.00022508,2]
[311042491,1704888631923,-42.07814639,0.00022508,2]
[311042492,1704888631932,-153.65,0.00022528,2]
[311042493,1704888631941,-157.47035074,0.00022538,2]
[311042494,1704888631951,-155.0,0.00022539,2]
[311042495,1704888631964,-6428.45607218,0.00022541,2]
[311042496,1704888631973,-176.01,0.00022548,2]
[311042497,1704888631983,-157.47035074,0.00022569,2]
[311042498,1704888631994,-196.81,0.00022596,2]
[311042499,1704888632003,-499.99,0.00022596,2]
[311042500,1704888632012,-157.47035074,0.00022599,2]
[311042501,1704888632021,-150.99,0.00022599,2]
[311042502,1704888632030,-153.65,0.00022615,2]
[311042503,1704888632040,-157.47035074,0.00022629,2]
[311042504,1704888632049,-157.47035074,0.00022659,2]
[311042505,1704888632058,-150.0,0.00022669,2]
[311042506,1704888632068,-150.0,0.00022669,2]
[311042507,1704888632077,-157.47035074,0.00022689,2]
[311042508,1704888632086,-153.65,0.00022703,2]
[311042509,1704888632095,-561.37,0.00022704,2]
[311042510,1704888632104,-196.81,0.00022711,2]
[311042511,1704888632114,-157.47035074,0.00022719,2]
[311042512,1704888632123,-157.47035074,0.00022749,2]
[311042513,1704888632132,-3668.05446085,0.00022764,4]
[311042514,1704888632141,-1598.73,0.00022766,2]
[311042515,1704888632151,-395.14018829,0.00022766,2]
[311042516,1704888632160,-157.47035074,0.00022779,2]
[311042517,1704888632169,-153.65,0.00022791,2]
[311042518,1704888632178,-435.9767895,0.00022798,2]
[311042519,1704888632188,-157.47035074,0.0002281,2]
[311042520,1704888632199,-196.81,0.00022826,2]
[311042521,1704888632209,-157.47035074,0.0002284,2]
[311042522,1704888632219,-435.97678949,0.00022849,2]
[311042523,1704888632228,-157.47035074,0.0002287,2]
[311042524,1704888632238,-153.65,0.00022879,2]
[311042525,1704888632247,-255.13164107,0.00022882,2]
[311042526,1704888632256,-222.2391875,0.00022895,2]
[311042527,1704888632266,-350.80712082,0.00022896,2]
[311042528,1704888632275,-112146.8399935,0.00022897,2]
[311042529,1704888632287,-1914.63412786,0.00022897,2]
[311042532,1704888632302,-5991.96335281,0.00022897,2]
[311042533,1704888632330,-12176.63469063,0.00022897,2]
[311042534,1704888632339,-748.3447769,0.00022898,2]
[311042535,1704888632348,-748.34477689,0.00022899,2]
[311042536,1704888632358,-748.34477689,0.00022899,2]
[311042537,1704888632367,-435.97678949,0.00022899,2]
[311042538,1704888632376,-748.34477689,0.000229,2]
[311042539,1704888632385,-175.79708537,0.000229,2]
[311042540,1704888632394,-157.47035074,0.000229,2]
[311042541,1704888632403,-1390.33,0.000229,2]
[311042542,1704888632412,-1561.0,0.000229,2]
[311042543,1704888632421,-2137.39297802,0.000229,2]
[311042544,1704888632431,-469.1726694,0.000229,2]
[311042545,1704888632440,-4378.69200464,0.000229,2]
[311042546,1704888632449,-672.51451774,0.000229,2]
[311042547,1704888632459,-748.34477689,0.000229,2]
[311042548,1704888632469,-195.25517109,0.000229,2]
[311042549,1704888632478,-1339.1526442,0.000229,2]
[311042550,1704888632487,-95.04145802,0.00022942,2]
[311042551,1704888632500,-101.76854198,0.00022942,2]
[311042552,1704888632509,-153.65,0.00022967,2]
[311042553,1704888632518,-206.61,0.00022986,2]
[311042554,1704888632528,-197.29390139,0.0002299,2]
[311042555,1704888632537,-262.71925405,0.00022997,2]
[311042556,1704888632547,-155.40720409,0.00022997,2]